Cogmind - Beta 15 @@@ ROGUE MODE // 2025.07.12 @ 19:30:16 Player: cart Result: Escaped! Performance ------------- Evolutions (9) 4500 Regions Visited (13) 2600 Robots Destroyed (54) 270 Value Destroyed (1341) 1341 Prototype IDs (32) 640 Alien Tech Used (0) 0 Bonus (4831) 4831 TOTAL SCORE: 14182 Bonus ------- Follower Combat Kills 31 Registered with UFD 300 Met Optimus in HQ 500 Met Warlord at Base 500 MAIN.C Attacked Warlord 500 Win 3000 Cogmind --------- Core Integrity 1449/1600 Matter 227/300 Energy 80/190 System Corruption 4% Temperature Cool (15) Movement Flying (24) Location To Epsilon Eridani Parts ------- > --- POWER (2) -------- Light Quantum Reactor > --- PROPULSION (9) --- Biomechanical Wings Nuclear Pulse Array Impulse Thruster Impulse Thruster Impulse Thruster Field Propulsion Array Cooled Impulse Thruster > --- UTILITY (12) ----- Medium Storage Unit Advanced Sensor Array Advanced Signal Interpreter Surveybot 17 Chip ECM Suite Improved Hacking Suite Improved Hacking Suite Improved System Shield Advanced System Shield > --- WEAPON (2) ------- Vortex Lance > --- INVENTORY (10) --- Reinforced Fission Core Light Particle Reactor Impulse Thruster Impulse Thruster Advanced Coolant Injector Vortex Rail (36) Heavy Rocket Launcher Improved Remote Datajack CPS Tube (1) Peak State ------------ > --- POWER ------------ Particle Reactor Light Quantum Reactor > --- PROPULSION ------- Biomechanical Wings Nuclear Pulse Array Impulse Thruster Impulse Thruster Impulse Thruster Impulse Thruster Impulse Thruster Cooled Impulse Thruster > --- UTILITY ---------- Advanced Heat Sink Medium Storage Unit Improved Sensor Array Surveybot 17 Chip ECM Suite Experimental Hardlight Generator Improved Hacking Suite Improved Hacking Suite Improved System Shield Advanced System Shield Mapping Drone Bay > --- WEAPON ----------- Plasma Sword > --- INVENTORY -------- Reinforced Fission Core Light Particle Reactor Advanced Coolant Injector Vortex Rail Heavy Rocket Launcher Improved Remote Datajack CPS Tube Vortex Lance [Rating: 145] Favorites ----------- Power Light Nuclear Core Engine Improved Deuterium Engine Power Core Light Nuclear Core Reactor Micro Antimatter Reactor Propulsion Flight Unit Treads Light Treads Flight Unit Flight Unit Utility Medium Storage Unit Device Advanced Sensor Array Storage Medium Storage Unit Processor Advanced Signal Interpreter Hackware Hacking Suite Protection Propulsion Shielding Weapon Light Assault Rifle Energy Gun Vortex Rail Ballistic Gun Light Assault Rifle Launcher Heavy Rocket Launcher Special Weapon CPS Tube Impact Weapon Mace Slashing Weapon Greatsword Piercing Weapon Vortex Lance Build | -11 -10 -10 -7 -5 -5 -5 -5 -4 -4 -3 -3 -2 -1 ------- Run | Yrd Mat Sub Scr Fac Upp Upp War Pro Fac Res Tes Res Acc Slots Evolved 18 | . . . . 10 . . . . 2 2 . 2 2 Power 1 | . . . . . . . . . . 1 . . . Propulsion 7 | . . . . 4 . . . . 1 1 . 1 . Utility 10 | . . . . 6 . . . . 1 . . 1 2 Weapon . | . . . . . . . . . . . . . . Parts Attached 82 | 7 7 1 7 16 1 1 9 2 9 7 3 4 8 Power 14 | 1 2 . 2 . 1 . 2 . 1 1 . 2 2 Engine 5 | 1 1 . 2 . 1 . . . . . . . . Core 4 | . 1 . . . . . 1 . 1 . . 1 . Reactor 5 | . . . . . . . 1 . . 1 . 1 2 Propulsion 22 | 2 2 . 2 4 . . . 1 5 2 1 . 3 Treads 5 | 2 2 . . . . . . . 1 . . . . Leg . | . . . . . . . . . . . . . . Wheel . | . . . . . . . . . . . . . . Hover . | . . . . . . . . . . . . . . Flight 17 | . . . 2 4 . . . 1 4 2 1 . 3 Utility 34 | 2 2 1 2 9 . 1 5 . 2 4 1 2 3 Device 16 | 1 . . 1 4 . . 2 . 1 2 1 2 2 Storage 3 | 1 2 . . . . . . . . . . . . Processor 5 | . . . 1 2 . . . . 1 . . . 1 Hackware 9 | . . . . 3 . 1 3 . . 2 . . . Protection 1 | . . 1 . . . . . . . . . . . Artifact . | . . . . . . . . . . . . . . Weapon 12 | 2 1 . 1 3 . . 2 1 1 . 1 . . Energy Gun 1 | . . . . . . . . . 1 . . . . Energy Cannon . | . . . . . . . . . . . . . . Ballistic Gun 3 | 2 1 . . . . . . . . . . . . Ballistic Cannon . | . . . . . . . . . . . . . . Launcher 1 | . . . . . . . . 1 . . . . . Special Weapon 2 | . . . . 2 . . . . . . . . . Impact Weapon 1 | . . . 1 . . . . . . . . . . Slashing Weapon 2 | . . . . 1 . . . . . . 1 . . Piercing Weapon 2 | . . . . . . . 2 . . . . . . Special Melee Weapon . | . . . . . . . . . . . . . . Unidentified Prototypes 8 | . . . . 1 . . 3 . 1 . 3 . . Parts Lost 23 | . 2 . . . 2 . 2 3 3 2 1 1 7 Power 3 | . . . . . 1 . . 1 . . . . 1 Propulsion 5 | . . . . . . . 1 1 1 . . 1 1 Utility 13 | . 1 . . . 1 . 1 1 2 2 1 . 4 Weapon 2 | . 1 . . . . . . . . . . . 1 Highest Loss Streak 4 | . 1 . . . 2 . 2 3 3 1 1 1 4 To Critical Strikes . | . . . . . . . . . . . . . . Average Backups 10 | 1 11 14 12 6 9 9 9 9 9 9 9 9 9 Power 1 | . 2 3 2 . . . . 1 . 1 2 2 2 Propulsion 3 | . 5 8 5 . 1 1 . . 1 1 2 1 . Utility 2 | . 2 2 2 3 5 5 4 4 2 1 1 1 1 Weapon 1 | . 1 1 . . 1 1 1 2 3 3 2 2 2 Tool/Special . | . . . . . . . . . . . . . . Unused Backups 4 | . . . 3 . . . . . . . . . 1 Power . | . . . . . . . . . . . . . . Propulsion 2 | . . . 2 . . . . . . . . . . Utility 1 | . . . . . . . . . . . . . 1 Weapon 1 | . . . 1 . . . . . . . . . . Tool/Special . | . . . . . . . . . . . . . . Average Slot Usage (%) 86 | . 87 98 84 85 82 83 93 93 87 72 83 81 76 Engine 2 | . 8 . 2 . 3 5 4 . . . . . . Core 5 | . 5 14 10 5 . . . . 5 1 . . . Treads 12 | . 28 28 18 . . . . . . . . . . Flight 13 | . . . 3 26 29 29 28 28 29 26 33 31 30 Device 6 | . 2 . 2 14 6 5 10 11 14 11 12 14 13 Storage 8 | . 14 14 10 3 5 5 5 5 5 4 4 4 4 Processor 3 | . . . 3 9 5 5 5 5 9 4 4 4 4 Hackware 7 | . . . . 8 17 18 22 22 15 14 19 17 16 Protection 4 | . . 12 9 4 5 5 . . . . . . . Ballistic Gun 12 | . 28 28 18 . . . . . . . . . . Impact Weapon 1 | . . . 3 1 . . . . . . . . . Piercing Weapon 2 | . . . . . . . 10 10 5 4 1 . 1 Peak Build Rating 145 | 7 9 10 16 64 64 66 94 95 122 116 123 137 145 Average Rating 44 | 5 7 9 10 54 60 62 84 93 111 108 117 126 127 On Entrance 62 | . 7 9 10 14 64 61 66 94 79 102 116 123 129 Naked Turns 69 | . . . 69 . . . . . . . . . . Heaviest Build 49 | 13 47 48 48 24 27 27 30 31 38 42 49 46 48 Greatest Support 62 | 40 40 40 40 31 31 31 31 31 41 51 51 58 62 Greatest Overweight (x) 9 | . 1 1 2 . 5 . 9 . . 1 . . . Average Overweight (x) . | . . 1 1 . . . . . . . . . . Largest Inventory Capacity 20 | 8 20 20 20 10 10 10 10 10 10 10 10 10 10 Average Capacity 13 | 7 16 20 15 8 10 10 10 10 10 10 10 10 10 Most Carried 16 | 3 15 15 16 9 9 9 10 10 10 10 10 10 10 Average Carried 10 | 2 11 14 12 6 9 9 9 9 9 9 9 9 9 Final Capacity 20 | 8 20 20 10 10 10 10 10 10 10 10 10 10 10 Final Carried 15 | 3 15 14 10 9 9 9 9 9 10 10 9 10 9 Class Distribution -------------------- 56% | Mutant 29% | Hacker-Sprinter 3% | Hacker-Ninja 3% | Ninja Dominant Class ---------------- Mutant | -10/Materials Mutant | -10/Subcaves Mutant | -7/Scraptown Ninja | -5/Factory Hacker-Sprinter | -5/Upper Caves Hacker-Sprinter | -5/Upper Caves Hacker-Sprinter | -5/Warlord Hacker-Sprinter | -4/Proximity Caves Hacker-Ninja | -4/Factory Hacker-Sprinter | -3/Research Hacker-Sprinter | -3/Testing Hacker-Sprinter | -2/Research Hacker-Sprinter | -1/Access Resources | -11 -10 -10 -7 -5 -5 -5 -5 -4 -4 -3 -3 -2 -1 ----------- Run | Yrd Mat Sub Scr Fac Upp Upp War Pro Fac Res Tes Res Acc Matter Collected 1480 | 286 227 10 60 341 1 9 120 66 94 103 . 127 36 Remotely . | . . . . . . . . . . . . . . Salvage Created 2150 | 111 563 . . 783 . . . 84 94 263 . 216 36 Parts 123 | 6 42 . . 22 . . . 12 4 13 . 16 8 Haulers Intercepted 9 | . . . . 5 . . . . 1 2 . 1 . Recyclers Shooed 5 | . 5 . . . . . . . . . . . . Parts Field Recycled . | . . . . . . . . . . . . . . Retrieved Matter . | . . . . . . . . . . . . . . Parts Self-Destructed 12 | . . 6 . . 1 . . 5 . . . . . Prevented 2 | . . . . . 2 . . . . . . . . Kills | -11 -10 -10 -7 -5 -5 -5 -5 -4 -4 -3 -3 -2 -1 ------- Run | Yrd Mat Sub Scr Fac Upp Upp War Pro Fac Res Tes Res Acc Combat Hostiles Destroyed 28 | . 16 . . . . . . 9 . 1 . 2 . Melee 4 | . 1 . . . . . . . . 1 . 2 . Guns 15 | . 15 . . . . . . . . . . . . AOE 9 | . . . . . . . . 9 . . . . . Classes Destroyed 11 | 2 6 . . 2 . . . . . 1 . . . Worker 3 | . 1 . . 1 . . . . . . . . 1 Builder 3 | . 1 . . . . . . . . . . . 2 Tunneler 2 | 1 . . . 1 . . . . . . . . . Hauler 9 | . . . . 5 . . . . 1 2 . 1 . Recycler 2 | 1 . . . 1 . . . . . . . . . Mechanic 1 | . . . . 1 . . . . . . . . . Operator 4 | . 1 . . 1 . . . . . 2 . . . Watcher 2 | . 1 . . 1 . . . . . . . . . Swarmer 13 | . 4 . . . . . . 9 . . . . . Grunt 12 | . 12 . . . . . . . . . . . . Programmer 3 | . . . . . . . . . . 1 . 2 . Best Kill Streak 5 | 2 3 . . 2 . . . 5 1 2 . 2 2 Combat Bots Only 5 | . 3 . . . . . . 5 . 1 . 2 . Max Kills in Single Turn 4 | 1 1 . . 1 . . . 4 1 1 . 1 1 Gunslinging . | . . . . . . . . . . . . . . Exploded 4 | . . . . . . . . 4 . . . . . Melee 1 | . 1 . . . . . . . . 1 . 1 . Uniques/NPCs Destroyed . | . . . . . . . . . . . . . . Combat | -11 -10 -10 -7 -5 -5 -5 -5 -4 -4 -3 -3 -2 -1 -------- Run | Yrd Mat Sub Scr Fac Upp Upp War Pro Fac Res Tes Res Acc Hostile Shots Fired 239 | . 79 . . 12 11 3 . 9 13 21 8 8 75 Missed 110 | . 23 . . 8 1 2 . 1 9 13 5 1 47 Hits 129 | . 56 . . 4 10 1 . 8 4 8 3 7 28 Melee 1 | . . . . . . . . . 1 . . . . Projectile 128 | . 56 . . 4 10 1 . 8 3 8 3 7 28 AOE 2 | . . . . . . . . . 2 . . . . Critical Strikes 7 | . . . . . . 1 . . . 1 1 1 3 Damage Taken 2710 | . 613 . . 205 256 28 188 121 226 189 70 159 655 Core 493 | . 95 . . 19 78 . 69 14 42 . 25 . 151 Absorbed by Shields . | . . . . . . . . . . . . . . Redirected to Shielding 46 | . . . . 37 9 . . . . . . . . Regen/Repaired (Parts) 25 | . . . . . . . 25 . . . . . . Core Remaining (%) 89 | 100 . . 62 . . . . 82 96 . 98 100 90 Volleys Fired 113 | 8 92 . . 4 . . . 5 . . 4 . . Largest 2 | 2 2 . . 1 . . . 1 . . 1 . . Hottest 45 | 40 40 . . 7 . . . 39 . . 45 . . Shots Fired 213 | 16 184 . . 4 . . . 5 . . 4 . . Gun 204 | 16 184 . . . . . . . . . 4 . . Cannon . | . . . . . . . . . . . . . . Launcher 5 | . . . . . . . . 5 . . . . . Special 4 | . . . . 4 . . . . . . . . . Kinetic 200 | 16 184 . . . . . . . . . . . . Thermal . | . . . . . . . . . . . . . . Explosive 5 | . . . . . . . . 5 . . . . . Electromagnetic . | . . . . . . . . . . . . . . Entropic 4 | . . . . . . . . . . . 4 . . Robot Hit Streak 12 | 6 12 . . 2 . . . . . . . . . Robot Miss Streak 6 | 1 6 . . 1 . . . 4 . . . . . Penetration Max . | . . . . . . . . . . . . . . Secondary Targets . | . . . . . . . . . . . . . . Shots Hit Robots 183 | 12 123 . . 21 . . . . 2 13 . 9 3 Core Hits 79 | 4 49 . . 6 . . . 11 1 4 . 3 1 Critical Kills . | . . . . . . . . . . . . . . Critical Parts Destroyed 1 | . 1 . . . . . . . . . . . . Critical Strikes 10 | . 1 . . 2 . . . . . 5 . 2 . Destroy 1 | . 1 . . . . . . . . . . . . Sever 4 | . . . . 2 . . . . . . . 2 . Sunder 5 | . . . . . . . . . . 5 . . . Melee Attacks 118 | . . . . 50 3 . 1 1 8 28 4 13 10 Impact 15 | . . . . 15 . . . . . . . . . Slashing 57 | . . . . 35 3 . . . . . . 13 6 Piercing . | . . . . . . . . . . . . . . Entropic 46 | . . . . . . . 1 1 8 28 4 . 4 Sneak Attacks 16 | . . . . 9 . . . . 1 2 . 1 3 Combat Hostiles . | . . . . . . . . . . . . . . Follow-up Attacks . | . . . . . . . . . . . . . . Damage Inflicted 5839 | 106 1026 . . 1542 . . . 639 217 1447 . 470 392 Guns 1088 | 97 991 . . . . . . . . . . . . Cannons . | . . . . . . . . . . . . . . Explosions 639 | . . . . . . . . 639 . . . . . Melee 4068 | . . . . 1542 . . . . 217 1447 . 470 392 Ramming 44 | 9 35 . . . . . . . . . . . . Kinetic 1088 | 97 991 . . . . . . . . . . . . Thermal . | . . . . . . . . . . . . . . Explosive 639 | . . . . . . . . 639 . . . . . Electromagnetic . | . . . . . . . . . . . . . . Impact 177 | . . . . 177 . . . . . . . . . Slashing 1915 | . . . . 1365 . . . . . . . 470 80 Piercing . | . . . . . . . . . . . . . . Entropic 1976 | . . . . . . . . . 217 1447 . . 312 Highest Corruption 5 | . . . . 1 1 1 5 5 . 3 5 2 4 Average Corruption 3 | . . . . 1 1 1 4 5 . 2 3 2 2 Corruption Purged . | . . . . . . . . . . . . . . Corruption Blocked . | . . . . . . . . . . . . . . Effects 19 | . . . . . . . 2 7 . 5 1 1 3 Message Errors 4 | . . . . . . . . 2 . 2 . . . Matter Fused 2 | . . . . . . . . . . . . . 2 Heat Flow Errors 3 | . . . . . . . 1 1 . . . 1 . Energy Discharges 3 | . . . . . . . . 1 . . 1 . 1 Parts Rejected 1 | . . . . . . . . . . 1 . . . Data Loss (minor) 5 | . . . . . . . 1 2 . 2 . . . Data Loss (major) 1 | . . . . . . . . 1 . . . . . Overload Shots . | . . . . . . . . . . . . . . Overflow Damage 645 | . . . . 282 . . . 1 . 232 . . 130 Projectiles . | . . . . . . . . . . . . . . Explosions 1 | . . . . . . . . 1 . . . . . Melee 644 | . . . . 282 . . . . . 232 . . 130 Knockbacks 1 | . . . . 1 . . . . . . . . . Impact 1 | . . . . 1 . . . . . . . . . Kinetic . | . . . . . . . . . . . . . . Secondary . | . . . . . . . . . . . . . . Self-Inflicted Damage . | . . . . . . . . . . . . . . Shots . | . . . . . . . . . . . . . . Rammed 10 | 1 9 . . . . . . . . . . . . Targets Rammed 10 | 1 9 . . . . . . . . . . . . Kicked . | . . . . . . . . . . . . . . Crushed . | . . . . . . . . . . . . . . Highest Temperature 258 | . 28 . . . . . 184 223 11 22 14 258 17 Average Temperature 22 | . 7 . . . . . 108 119 7 9 5 75 9 Received Heat Transfer 399 | . 282 . . 9 51 . . . 12 . . . 45 Siege Activations . | . . . . . . . . . . . . . . Martial Activations . | . . . . . . . . . . . . . . Shielding Activations . | . . . . . . . . . . . . . . Robots Disrupted . | . . . . . . . . . . . . . . Combat Hostiles . | . . . . . . . . . . . . . . Robots Corrupted 2 | . . . . 2 . . . . . . . . . Combat Hostiles . | . . . . . . . . . . . . . . Parts Fried 5 | . . . . 5 . . . . . . . . . Impact Corruptions 3 | . . . . 3 . . . . . . . . . Robots Melted . | . . . . . . . . . . . . . . Combat Hostiles . | . . . . . . . . . . . . . . Parts Melted . | . . . . . . . . . . . . . . Heat Transferred . | . . . . . . . . . . . . . . Parts Sabotaged . | . . . . . . . . . . . . . . Parts Stolen . | . . . . . . . . . . . . . . Parts Stripped . | . . . . . . . . . . . . . . Power Chain Reactions . | . . . . . . . . . . . . . . Alert | -11 -10 -10 -7 -5 -5 -5 -5 -4 -4 -3 -3 -2 -1 ------- Run | Yrd Mat Sub Scr Fac Upp Upp War Pro Fac Res Tes Res Acc Maximum Alert Level 1 | . . . . 1 . . . . . . . . 1 Low Security (%) 96 | 100 100 . . 92 . . . . 100 100 100 100 77 Level 1 3 | . . . . 7 . . . . . . . . 22 Level 2 . | . . . . . . . . . . . . . . Level 3 . | . . . . . . . . . . . . . . Level 4 . | . . . . . . . . . . . . . . Level 5 . | . . . . . . . . . . . . . . High Security . | . . . . . . . . . . . . . . Max Security . | . . . . . . . . . . . . . . Peak Influence 340 | 5 94 . . 218 . . . . 75 75 41 71 340 Initial 75 | . . . . . . . . . 75 11 18 11 42 Average 55 | 1 31 . . 107 . . . . 44 28 28 19 125 Influence Increases 2412 | 10 470 . . 509 . 165 116 200 49 195 62 138 498 Destroy 0b10 Robot/C 660 | . 320 . . . . . 100 180 . 20 . 40 . Destroy 0b10 Robot/NC 130 | 10 20 . . 55 . . . . 5 20 . 5 15 Destroy Leader 122 | . 72 . . 12 . . . 20 2 4 . 12 . Allied During Kill 16 | . . . . . . . 16 . . . . . . Successful Hack 67 | . 28 . . 21 . . . . . . 18 . . Disable Machine 90 | . . . . 60 . . . . . . 15 . 15 Destroy Structure 112 | . . . . 46 . . . . 12 16 14 6 18 Partial Spotted 210 | . . . . 120 . . . . 15 45 . . 30 Lose Combat Pursuer 1005 | . 30 . . 195 . 165 . . 15 90 15 75 420 Influence Decreases 2082 | 10 438 32 . 292 132 47 287 112 147 185 74 87 239 Entered New Map 458 | . . 16 . . 82 17 203 32 45 11 14 9 29 Time Decay 1352 | 10 418 16 . 292 30 30 24 50 90 144 40 68 140 Lost Part 182 | . 20 . . . 20 . . 30 12 10 10 10 70 Lost Ally 90 | . . . . . . . 60 . . 20 10 . . Squads Dispatched 26 | . 4 . . 8 . . . . 2 5 1 1 5 Investigation 7 | . 1 . . 4 . . . . . . . . 2 Extermination 8 | . . . . 1 . . . . . 2 1 1 3 Reinforcement 11 | . 3 . . 3 . . . . 2 3 . . . Assault . | . . . . . . . . . . . . . . Garrison . | . . . . . . . . . . . . . . Intercept . | . . . . . . . . . . . . . . Searches Triggered . | . . . . . . . . . . . . . . Construction Impeded . | . . . . . . . . . . . . . . Haulers Reinforced 2 | . . . . 2 . . . . . . . . . Active Scanning Responses . | . . . . . . . . . . . . . . Cargo Convoy Interrupts . | . . . . . . . . . . . . . . Stealth | -11 -10 -10 -7 -5 -5 -5 -5 -4 -4 -3 -3 -2 -1 --------- Run | Yrd Mat Sub Scr Fac Upp Upp War Pro Fac Res Tes Res Acc Distress Signals 11 | . 2 . . 3 . . 1 . 1 . 1 . 3 Communications Jammed . | . . . . . . . . . . . . . . Distress Signals . | . . . . . . . . . . . . . . Times Spotted 154 | . 34 . . 18 5 4 10 5 18 14 10 6 30 Peak Tracking Total 17 | . 3 . . 9 6 10 9 4 15 7 8 6 17 Tactical Retreats 24 | . 2 . . 6 . 3 . . 1 2 1 1 8 Traps | -11 -10 -10 -7 -5 -5 -5 -5 -4 -4 -3 -3 -2 -1 ------- Run | Yrd Mat Sub Scr Fac Upp Upp War Pro Fac Res Tes Res Acc Traps Triggered 11 | . 1 . . 3 . . . . 1 2 2 1 1 Indirectly . | . . . . . . . . . . . . . . Trap Hack Attempts . | . . . . . . . . . . . . . . Triggered . | . . . . . . . . . . . . . . Disarmed . | . . . . . . . . . . . . . . Reprogrammed . | . . . . . . . . . . . . . . Reused . | . . . . . . . . . . . . . . Traps Extracted . | . . . . . . . . . . . . . . Installed . | . . . . . . . . . . . . . . Triggered . | . . . . . . . . . . . . . . Machines | -11 -10 -10 -7 -5 -5 -5 -5 -4 -4 -3 -3 -2 -1 ---------- Run | Yrd Mat Sub Scr Fac Upp Upp War Pro Fac Res Tes Res Acc Machines Disabled 7 | . . . . 4 . . 1 . . . 1 . 1 Max in Single Turn 1 | . . . . 1 . . 1 . . . 1 . 1 Garrison Access 3 | . . . . 3 . . . . . . . . . Machines Repaired . | . . . . . . . . . . . . . . Machines Dismantled . | . . . . . . . . . . . . . . Machines Sabotaged . | . . . . . . . . . . . . . . Overloaded Fab Kills . | . . . . . . . . . . . . . . Hacking | -11 -10 -10 -7 -5 -5 -5 -5 -4 -4 -3 -3 -2 -1 --------- Run | Yrd Mat Sub Scr Fac Upp Upp War Pro Fac Res Tes Res Acc Machines Accessed 45 | . 6 . 6 12 1 . 11 . 1 2 3 1 2 Terminals 21 | . 6 . . 5 1 . . . 1 2 3 1 2 Fabricators 1 | . . . . 1 . . . . . . . . . Repair Stations . | . . . . . . . . . . . . . . Recycling Units 3 | . . . . 3 . . . . . . . . . Scanalyzers . | . . . . . . . . . . . . . . Garrison Access 3 | . . . . 3 . . . . . . . . . Total Hacks 120 | . 10 . 41 23 1 . 26 . 2 4 3 3 7 Successful 92 | . 8 . 41 11 1 . 26 . . . 2 . 3 Failed 28 | . 2 . . 12 . . . . 2 4 1 3 4 Catastrophic 3 | . . . . . . . . . . 2 1 . . Database Lockouts . | . . . . . . . . . . . . . . Manual 43 | . 10 . . 17 . . . . 2 4 3 3 4 Terminals 42 | . 10 . . 12 1 . . . 2 4 3 3 7 Fabricators 2 | . . . . 2 . . . . . . . . . Repair Stations . | . . . . . . . . . . . . . . Recycling Units 5 | . . . . 5 . . . . . . . . . Scanalyzers . | . . . . . . . . . . . . . . Garrison Access 4 | . . . . 4 . . . . . . . . . Terminal Hacks 76 | . . . 41 3 1 . 26 . . . 2 . 3 Record 53 | . . . 34 . 1 . 18 . . . . . . Robot Analysis 6 | . . . 6 . . . . . . . . . . Prototype ID Bank 7 | . . . . . . . 7 . . . . . . Open Door 2 | . . . . . . . 1 . . . . . 1 Level Access Points 2 | . . . . . . . . . . . 1 . 1 Branch Access Points 1 | . . . . . . . . . . . . . 1 Recycling Unit Index 1 | . . . . 1 . . . . . . . . . Recall Extermination 1 | . . . . 1 . . . . . . . . . Registered Components 1 | . . . . 1 . . . . . . . . . Zone Layout 1 | . . . . . . . . . . . 1 . . Proto ID Catalog 1 | . . . 1 . . . . . . . . . . Fabricator Hacks 1 | . . . . 1 . . . . . . . . . Network Status 1 | . . . . 1 . . . . . . . . . Repair Station Hacks . | . . . . . . . . . . . . . . Recycling Unit Hacks . | . . . . . . . . . . . . . . Scanalyzer . | . . . . . . . . . . . . . . Garrison Access Hacks 3 | . . . . 3 . . . . . . . . . Seal Access 3 | . . . . 3 . . . . . . . . . Unauthorized Hacks 12 | . 8 . . 4 . . . . . . . . . Terminals 9 | . 8 . . 1 . . . . . . . . . Botnet 3 | . 2 . . 1 . . . . . . . . . Skim 6 | . 6 . . . . . . . . . . . . Fabricators . | . . . . . . . . . . . . . . Repair Stations . | . . . . . . . . . . . . . . Recycling Units 3 | . . . . 3 . . . . . . . . . Fedlink 3 | . . . . 3 . . . . . . . . . Scanalyzers . | . . . . . . . . . . . . . . Garrison Access . | . . . . . . . . . . . . . . Data Cores Recovered 1 | . . . . 1 . . . . . . . . . Used . | . . . . . . . . . . . . . . Hacking Detections 16 | . 1 . . 8 . . . . 1 2 1 1 2 Full Trace Events 2 | . . . . . . . . . . . . . 2 Feedback Events . | . . . . . . . . . . . . . . Feedback Blocked . | . . . . . . . . . . . . . . Robot Schematics Acquired . | . . . . . . . . . . . . . . Robots Built . | . . . . . . . . . . . . . . Authchips . | . . . . . . . . . . . . . . Time . | . . . . . . . . . . . . . . Total Robot Build Rating . | . . . . . . . . . . . . . . Part Schematics Acquired . | . . . . . . . . . . . . . . Parts Built . | . . . . . . . . . . . . . . Authchips . | . . . . . . . . . . . . . . Time . | . . . . . . . . . . . . . . Total Part Build Rating . | . . . . . . . . . . . . . . Parts Repaired . | . . . . . . . . . . . . . . Time . | . . . . . . . . . . . . . . Parts Recycled . | . . . . . . . . . . . . . . Recycled Matter . | . . . . . . . . . . . . . . Retrieved Matter . | . . . . . . . . . . . . . . Retrieved Components . | . . . . . . . . . . . . . . Parts Scanalyzed . | . . . . . . . . . . . . . . Part Schematics Acquired . | . . . . . . . . . . . . . . Parts Damaged . | . . . . . . . . . . . . . . Bothacking | -11 -10 -10 -7 -5 -5 -5 -5 -4 -4 -3 -3 -2 -1 ------------ Run | Yrd Mat Sub Scr Fac Upp Upp War Pro Fac Res Tes Res Acc Used RIF Installer . | . . . . . . . . . . . . . . Robots Hacked 2 | . . . . 2 . . . . . . . . . Non-combat 2 | . . . . 2 . . . . . . . . . Combat . | . . . . . . . . . . . . . . Robot Hacks Applied 2 | . . . . 2 . . . . . . . . . find_chute 2 | . . . . 2 . . . . . . . . . Relay Couplers Released . | . . . . . . . . . . . . . . Fabnet Peak Effective % . | . . . . . . . . . . . . . . Robots Rewired 5 | . . . . . . . 5 . . . . . . Allies Hacked . | . . . . . . . . . . . . . . Hacks Repelled . | . . . . . . . . . . . . . . Allies | -11 -10 -10 -7 -5 -5 -5 -5 -4 -4 -3 -3 -2 -1 -------- Run | Yrd Mat Sub Scr Fac Upp Upp War Pro Fac Res Tes Res Acc Total Allies 5 | . . . . . . . 5 . . . . . . Largest Group 5 | . . . . . . . 5 . . . . . . Highest-Rated Group 252 | . . . . . . . 252 . . . . . . Highest-Rated Ally 68 | . . . . . . . 68 . . . . . . Total Orders 6 | . . . 3 . . . . . . 3 . . . ROAM 1 | . . . 1 . . . . . . . . . . EXPLORE 4 | . . . 1 . . . . . . 3 . . . RETURN 1 | . . . 1 . . . . . . . . . . Ally Attacks 21 | . . . . . . . 21 . . . . . . Total Damage 756 | . . . . . . . 756 . . . . . . Kills 5 | . . . . . . . 5 . . . . . . Allies Corrupted . | . . . . . . . . . . . . . . Allies Melted 3 | . . . . . . . 3 . . . . . . Intel | -11 -10 -10 -7 -5 -5 -5 -5 -4 -4 -3 -3 -2 -1 ------- Run | Yrd Mat Sub Scr Fac Upp Upp War Pro Fac Res Tes Res Acc Active Infowar (turns) 3053 | 37 211 . . 692 59 72 914 365 184 173 62 131 153 Sensors 2511 | . . . . 649 59 72 914 365 168 . . 131 153 Terrain 324 | . . . . . . . . . 184 140 . . . Structural 221 | . . . . 217 4 . . . . . . . . Seismic 343 | 37 211 . . . . . . . . 33 62 . . Cloaking 71 | . . . . 2 . . 4 65 . . . . . ECM 1 | . . . . . . . . . . . . . 1 Robot Analysis Total 6 | . . . 6 . . . . . . . . . . Derelict Logs Recovered 1 | . . . . . . . . 1 . . . . . Drone Launches 9 | . . . 3 . . . . . . 5 1 . . Drone Recoveries 6 | . . . 3 . . . . . . 3 . . . Exploration | -11 -10 -10 -7 -5 -5 -5 -5 -4 -4 -3 -3 -2 -1 ------------- Run | Yrd Mat Sub Scr Fac Upp Upp War Pro Fac Res Tes Res Acc Turns Passed 7166 | 105 1369 408 2139 695 67 72 914 365 184 320 82 155 291 Spaces Moved 7875 | 46 479 168 1178 1488 180 252 864 492 401 599 281 448 999 Core 494 | 3 . . 483 . 2 . 6 . . . . . . Treads 1273 | 43 479 168 583 . . . . . . . . . . Legs . | . . . . . . . . . . . . . . Wheels . | . . . . . . . . . . . . . . Hover . | . . . . . . . . . . . . . . Flight 6108 | . . . 112 1488 178 252 858 492 401 599 281 448 999 Fastest Speed 18 | 50 160 240 37 28 28 28 28 27 27 22 21 18 21 Average Speed 65 | 152 211 240 173 28 31 28 31 27 29 25 21 20 23 Slowest Speed 500 | 160 240 240 240 34 300 28 500 29 48 108 22 21 24 Overloaded Moves . | . . . . . . . . . . . . . . Propulsion Burnouts . | . . . . . . . . . . . . . . Robots Hopped 15 | . . . . 5 . . 1 . 7 . . . 2 Potential Cave-ins . | . . . . . . . . . . . . . . Cave-ins Triggered 1 | . . . . . . . 1 . . . . . . Exploration Rate (%) 40 | 4 87 19 93 31 34 47 75 62 15 23 42 11 29 Regions Visited 13 Branch Regions 7 Pre-discovered Areas 6 | . . . 5 1 . . . . . . . . . Known Exits Taken 8 | . . . 1 1 1 1 1 1 1 . 1 . . Unknown Exits Taken 5 | 1 1 1 . . . . . . . 1 . 1 . Scrap Searched 7 | . . . 3 . . 2 . 2 . . . . . Spaces Dug 55 | . . . . 23 3 . . 1 6 8 6 2 6 Terrain Destroyed 114 | . . . . 23 3 . . 60 6 8 6 2 6 Melee 52 | . . . . 23 3 . . 1 6 8 3 2 6 Projectile 3 | . . . . . . . . . . . 3 . . AOE 59 | . . . . . . . . 59 . . . . . Terrain Rammed . | . . . . . . . . . . . . . . Walls Destroyed . | . . . . . . . . . . . . . . Machines Disabled . | . . . . . . . . . . . . . . Actions | -11 -10 -10 -7 -5 -5 -5 -5 -4 -4 -3 -3 -2 -1 --------- Run | Yrd Mat Sub Scr Fac Upp Upp War Pro Fac Res Tes Res Acc Total 9484 | 64 675 173 1270 1649 183 252 1497 714 451 736 293 492 1035 Wait 1164 | . 81 4 57 67 . . 602 206 37 87 1 12 10 Move 7834 | 46 478 167 1177 1477 179 251 861 491 387 598 280 447 995 Hop 13 | . . . . 5 . . 1 . 6 . . . 1 Pick Up 39 | 3 7 . 16 7 . . 1 1 . 1 . 1 2 Fast Attach 49 | 7 1 . 5 14 1 1 4 . 1 6 1 3 5 Attach 37 | . 1 1 4 9 . . 2 4 4 3 1 2 6 Detach 13 | . 1 . . 4 . . . 2 1 1 . 2 2 Swap 31 | . 5 1 4 1 . . 7 3 5 2 2 . 1 Drop 30 | . . . 7 11 . . 3 1 2 2 . 1 3 Fire 113 | 8 92 . . 4 . . . 5 . . 4 . . Melee 118 | . . . . 50 3 . 1 1 8 28 4 13 10 Ram . | . . . . . . . . . . . . . . Kick . | . . . . . . . . . . . . . . Crush 9 | . 9 . . . . . . . . . . . . Escape Stasis 19 | . . . . . . . . . . 8 . 11 . Rewire 15 | . . . . . . . 15 . . . . . . Trap . | . . . . . . . . . . . . . . Miscellaneous . | . . . . . . . . . . . . . . Route ------- -11/Scrapyard -10/Materials (discovered 6 exits: *Mat x3 / *Min x2 / [*Sub]) -10/Subcaves (discovered 2 exits: [*Mat] / *Scr) -7/Scraptown (discovered 2 exits: *Fac x2) -5/Factory (discovered 5 exits: *Fac x3 / *Upp x2) -5/Upper Caves -5/Upper Caves (discovered 2 exits: Fac / *War) -5/Warlord -4/Proximity Caves -4/Factory (discovered 3 exits: *Res x2 / [Upp]) -3/Research -3/Testing -2/Research -1/Access (discovered 2 exits: *Sur / Com) To Epsilon Eridani History --------- Turn | Location | Event 23 | -11/Scrapyard | Discovered new exit (range 16) 106 | -11/Scrapyard | Entered Materials 313 | -10/Materials | Build established: Mutant 500 | -10/Materials | Discovered new exit (range 10) 741 | -10/Materials | Discovered new exit (range 7) 1149 | -10/Materials | Discovered new exit (range 16) 1381 | -10/Materials | Learned location of 1 exit from Recycling 1458 | -10/Materials | Discovered new exit (range 7) 1459 | -10/Materials | Identified exit to Materials 1459 | -10/Materials | Identified exit to Mines 1459 | -10/Materials | Learned location of 1 exit from Materials 1475 | -10/Materials | Entered Subcaves 1476 | -10/Subcaves | Approached by a straggling Scientist 1788 | -10/Subcaves | Shifting Twisted Machinery released Sub. Monowheel 1856 | -10/Subcaves | Discovered new exit (range 12) 1878 | -10/Subcaves | Scientist uncovered a shortcut to Scraptown 1883 | -10/Subcaves | Entered Scraptown 2234 | -7/Scraptown | Heard Great Nut preacher, LISTEN AND RECITE! 2309 | -7/Scraptown | Discovered new exit (range 13) 2501 | -7/Scraptown | Visited Cyclists 2599 | -7/Scraptown | Visited UFD Registry 2599 | -7/Scraptown | Registered with UFD as "Shadowripper" 2700 | -7/Scraptown | Entered Cyclist Reading Room 2892 | -7/Scraptown | Visited Junk Repository 2989 | -7/Scraptown | Visited Supply Room 3039 | -7/Scraptown | Visited Analyses Database 3111 | -7/Scraptown | Visited Curators Association 3167 | -7/Scraptown | Visited Scrapoid Pod Storage 3198 | -7/Scraptown | Visited Abandonware Association 3239 | -7/Scraptown | Visited Cartography Club 3287 | -7/Scraptown | Released all parts (7) 3303 | -7/Scraptown | Found Surveybot 17 Chip 3337 | -7/Scraptown | Found Deep Structural Scanner 3342 | -7/Scraptown | Learned location of Storage (-7) 3342 | -7/Scraptown | Learned location of Extension (-5) 3342 | -7/Scraptown | Learned location of Cetus (-5) 3342 | -7/Scraptown | Learned 8 Factory zone layouts 3342 | -7/Scraptown | Learned 12 Factory zone layouts 3342 | -7/Scraptown | Learned 8 Lower Caves zone layouts 3342 | -7/Scraptown | Learned 8 Upper Caves zone layouts 3342 | -7/Scraptown | Learned 24 Proximity Caves zone layouts 3342 | -7/Scraptown | Learned Research emergency access door positions 3342 | -7/Scraptown | Learned location of 1 exit from Factory 3342 | -7/Scraptown | Learned location of 3 exits from Upper Caves 3342 | -7/Scraptown | Identified exit to Factory 3365 | -7/Scraptown | Visited Infowarlord's Domain 3367 | -7/Scraptown | Found Exp. Terrain Scanner 3377 | -7/Scraptown | Visited Science Guys 3397 | -7/Scraptown | Visited Botcube Research 3577 | -7/Scraptown | Visited The Evicted 3598 | -7/Scraptown | Visited SPCMW 3844 | -7/Scraptown | Met Optimus 3844 | -7/Scraptown | Accepted into 0bPrime 4022 | -7/Scraptown | Entered Factory 4022 | -5/Factory | Evolved 10 slots: Propulsion x4, Utility x6 4023 | -5/Factory | Identified exit to Factory 4023 | -5/Factory | Identified exit to Upper Caves 4247 | -5/Factory | Loaded intel: 8 recycling unit locations 4267 | -5/Factory | Learned location of Protoforge (-2) 4717 | -5/Factory | Entered Upper Caves 4717 | -5/Upper Caves | Spotted B-75 Beast 4718 | -5/Upper Caves | Identified exit to Upper Caves 4762 | -5/Upper Caves | Ambushed by wild Derelicts 4784 | -5/Upper Caves | Entered another Upper Caves area 4785 | -5/Upper Caves | Identified exit to Warlord 4856 | -5/Upper Caves | Entered Warlord 4868 | -5/Warlord | System corruption cleaned by Quarantine Array 4895 | -5/Warlord | Visited the Vortex Lab 4897 | -5/Warlord | Found Prototype Piercing Weapon 4897 | -5/Warlord | Identified Vortex Lance 4898 | -5/Warlord | Warlord's base attacked by MAIN.C 4899 | -5/Warlord | Found Vortex Lance 4911 | -5/Warlord | Found Prototype Device 4911 | -5/Warlord | Identified Exp. Cloaking Device 4914 | -5/Warlord | Found Prototype Device 4914 | -5/Warlord | Identified Thermal Barrier 4931 | -5/Warlord | Rebuked by Warlord 5033 | -5/Warlord | Build established: Hacker-Sprinter 5164 | -5/Warlord | Found Prototype Energy Gun 5248 | -5/Warlord | Warlord forces counterattacked 5573 | -5/Warlord | Warlord base infiltrated, sounded retreat 5630 | -5/Warlord | Crushed by falling debris 5678 | -5/Warlord | Spotted Executioner 5715 | -5/Warlord | Spotted Executioner 5719 | -5/Warlord | Spotted Striker 5728 | -5/Warlord | Spotted Striker 5728 | -5/Warlord | Spotted Striker 5762 | -5/Warlord | Lost 3 allies 5766 | -5/Warlord | Discovered new exit (range 15) 5769 | -5/Warlord | Identified exit to Proximity Caves 5770 | -5/Warlord | Entered Proximity Caves 5777 | -4/Proximity Caves | Learned Research garrison access intel 6135 | -4/Proximity Caves | Entered Factory 6135 | -4/Factory | Evolved 2 slots: Propulsion x1, Utility x1 6136 | -4/Factory | Identified exit to Research 6146 | -4/Factory | Discovered new exit (range 28) 6149 | -4/Factory | Lost 3 parts (1p1n1u) 6280 | -4/Factory | Spotted B-86 Titan 6300 | -4/Factory | Identified Vortex Rail 6319 | -4/Factory | Entered Research 6319 | -3/Research | Evolved 2 slots: Power x1, Propulsion x1 6321 | -3/Research | Loaded intel: 4 garrison access locations 6334 | -3/Research | Lost 3 parts (1n2u) 6615 | -3/Research | Spotted B-86 Titan 6638 | -3/Research | Discovered new exit (range 3) 6639 | -3/Research | Entered Testing 6642 | -3/Testing | Identified exit to Research 6687 | -3/Testing | Found Prototype Device 6687 | -3/Testing | Identified Exp. Hardlight Generator 6707 | -3/Testing | Spotted Alpha 7 6721 | -3/Testing | Entered Research 6721 | -2/Research | Evolved 2 slots: Propulsion x1, Utility x1 6866 | -2/Research | Discovered new exit (range 8) 6876 | -2/Research | Entered Access 6876 | -1/Access | Evolved 2 slots: Utility x2 7002 | -1/Access | Spotted B-99 Colossus 7056 | -1/Access | Spotted B-99 Colossus 7094 | -1/Access | Identified exit to Command 7094 | -1/Access | Identified exit to Surface 7098 | -1/Access | Lost 4 parts (1n2u1w) 7167 | *** | Escaped! Last Messages --------------- 07112_ Penetrated by Slug. 07128_ System corrupted: Energy discharge (-41). 07138_ TF Node disabled. 07138_ Adv. Sensor Array tumbles out of TF Node. 07138_ Adv. Signal Interpreter tumbles out of TF Node. 07140_ Acquired Adv. Sensor Array. 07142_ Acquired Adv. Signal Interpreter. 07144_ Lgt. Quantum Reactor destroyed. 07145_ K-01 Serf cleans the Sealed Freight Elevator. 07160_ ALERT: Potential suspicious activity detected, Programmers report to Access Zone 5R. 07165_ Connecting with Terminal... >>Open(Door) Sealed Barrier opened. 07165_ ALERT: Suspicious activity at Terminal A001. Dispatching Investigation squad. 07166_ The Access Shell folds into the floor. [Achievement: Epsilon Run] Map ----- +----------------------------------------------------+ | ?????????????????????????????????????????????????# | | ?????????????????????????????????????????????????# | | ?????????????????????????????????????????????????? | | ?????????????????????????????????????????????????? | | ?????????????????????????????????????????????????? | | ?????????????????????????????????????????????????? | | ?????????????????????????????????????????????????? | | ?????????????????????????????????????????????????? | | ?????????????????????????????????????????????????? | | ?????????????????????????????????????????????????? | | ?????????????????????????????????????????????????? | | ?????????????????????????????????????????????????? | | ?????????????????????????????????????????????????? | | ?????????????????????????????????????????????????? | | ?????????????????????????????????????????????????? | | ?????????????????????????????????????????????????? | | ?????????????????????????????????????????????????? | | ?????????????????????????????????????????????????? | | ?????????????????????????????????????????????????? | | ?????????????????????????????????????????????????? | | ???????????????????#""""""""""#??????????????????? | | ???????????????????# #??????????????????? | | ???????????????????# #??????????????????? | | ???????????????????# #??????????????????? | | ???????????????????# "" #?###??????????????? | | ???????????????????# "@ #?# ????? ???????? | | ???????????????????# #?# ???? ???????? | | ???????????????????# #?# ?? ????????? | | ???????????????????# #?# ? ????????? | | ??????????????????## ### " ?????????? | | ??????????????????# ## """ ?????????? | | ??????????????????##"" ### """ ??????????? | | ???????????????????#"" #?# " ??????????? | | ???????????????????#"" #?? ???????????? | | ???????????????????#T #?? ???????????? | | ???????????????????#"" #??? ????????????? | | ???????????????????#"" #??? ????????????? | | ?????????????????###"" #####+############## | | ????????????? | | ???????????? | | ?????????????######################+########+##### | | ??????????????????????????????????????????? ???? | | ??????????????????????????????????????????? ???? | | ?????????????????????????????????????????? ??? | | ?????????????????????????????????????????? ] ??? | | ????????????????????????????????????????? ?? | | ????????????????????????????????????????? ?? | | ???????????????????????????????????????? #? | | ???????????????????????????????????????? #? | | ??????????????????????????????????????? #? | +----------------------------------------------------+ Best States ------------- Heat Dissipation 71 Energy Generation 25 Energy Capacity 340 Matter Stores 300 Matter Capacity 300 Sight Range 16 Robot Scan Range 16 Terrain Scan Range 30 Terrain Scan Density 1210 Cloak Strength 4 Propulsion Shielding 33 Evasion (%) 66 Recoil Reduction 2 Offensive Hacking 38 Defensive Hacking 26 Item Schematics ----------------- None Robot Schematics ------------------ None Fabricated ------------ Nothing Repaired ---------- Nothing Alien Tech Used ----------------- None Achievements -------------- Epsilon Run Omniscient Cartographer Challenges ------------ None Game ------ Seed SingularitySpliceTorch Manual? 0 Play Time 01:14:28 Cumulative 24.7 hours Start 2025.07.12 @ 14:16:04 End 2025.07.12 @ 19:30:16 Sessions 7 Manual Loads 0 Difficulty Rogue Special Mode None Game No. 20 Rogue 20 Adventurer 0 Explorer 0 Win Type 0 Total 6 Types 1/0/2/0/1/0/2/0/0/0 Lore% 11 Gallery% 24 Achievement% 40 Wizard Run 0 Options --------- Layout 1 ASCII 0 Keyboard 0 Movement Arrows Keybinds 0 Fullscreen 2 Font 20/Terminus Map View 55x45 Zoom Use 0% Tactical HUD 1 Map Filters NONE Filters NONE Steam 0 RUN: ca053656-7c0f-4699-92fb-75ddb9576860